Cogmind - Beta 9 @@@ ROGUE MODE // 2019.10.24 @ 23:25:11 Player: Alexbot Result: Destroyed by as-41311 with Assembled F-torch Performance ------------- Evolutions (0) 0 Regions Visited (2) 400 Robots Destroyed (13) 65 Value Destroyed (114) 114 Prototype IDs (0) 0 Alien Tech Used (0) 0 Bonus (0) 0 TOTAL SCORE: 579 Bonus ------- None Cogmind --------- Core Integrity 0/250 Matter 300/300 Energy 51/100 System Corruption 1% Temperature Cool (467) Location -10/Mines Parts ------- Power (1) Propulsion (2) Utility (2) Weapon (2) Inventory (4) Armored Wheel Peak State ------------ Power Light Ion Engine Propulsion Armored Wheel Armored Wheel Utility Medium Storage Unit Medium Storage Unit Weapon Beam Rifle Beam Rifle Inventory Armored Wheel Mining Laser [Rating: 11] Favorites ----------- Power Light Ion Engine Engine Light Ion Engine Propulsion Armored Wheel Wheel Armored Wheel Utility Medium Storage Unit Storage Medium Storage Unit Weapon Assault Rifle Energy Gun EM Pulse Gun Ballistic Gun Assault Rifle Special Weapon Mining Laser Build | -11 -10 -10 ------- Run | Scr Mat Min Slots Evolved . | . . . Power . | . . . Propulsion . | . . . Utility . | . . . Weapon . | . . . Parts Attached 16 | 6 4 6 Power 2 | 1 . 1 Engine 2 | 1 . 1 Core . | . . . Reactor . | . . . Propulsion 5 | 2 2 1 Treads . | . . . Leg . | . . . Wheel 5 | 2 2 1 Hover . | . . . Flight . | . . . Utility 3 | 1 2 . Device . | . . . Storage 3 | 1 2 . Processor . | . . . Hackware . | . . . Protection . | . . . Artifact . | . . . Weapon 6 | 2 . 4 Energy Gun 4 | 1 . 3 Energy Cannon . | . . . Ballistic Gun 1 | 1 . . Ballistic Cannon . | . . . Launcher . | . . . Special Weapon 1 | . . 1 Impact Weapon . | . . . Slashing Weapon . | . . . Piercing Weapon . | . . . Special Melee Weapon . | . . . Unidentified Prototypes . | . . . Parts Lost 10 | . . 10 Power 2 | . . 2 Propulsion 3 | . . 3 Utility . | . . . Weapon 5 | . . 5 Highest Loss Streak 8 | . . 8 Average Slot Usage (%) 88 | . 86 90 Engine 11 | . 14 9 Wheel 27 | . 28 26 Storage 20 | . 15 26 Energy Gun 13 | . 14 13 Ballistic Gun 12 | . 14 11 Naked Turns 2 | . . 2 Heaviest Build 23 | 11 23 23 Greatest Support 28 | 26 28 24 Greatest Overweight (x) 3 | 3 . . Average Overweight (x) . | . . . Largest Inventory Capacity 12 | 6 12 12 Average Capacity 8 | 5 6 11 Most Carried 7 | 4 7 7 Average Carried 4 | 2 4 5 Final Capacity 4 | . . 4 Final Carried 1 | . . 1 Class Distribution -------------------- 100% | Mutant Dominant Class ---------------- Mutant | -10/Materials Mutant | -10/Mines Resources | -11 -10 -10 ----------- Run | Scr Mat Min Matter Collected 427 | 260 53 114 Remotely . | . . . Salvage Created 249 | . 107 142 Parts 12 | . 8 4 Haulers Intercepted . | . . . Recyclers Shooed . | . . . Parts Field Recycled . | . . . Retrieved Matter . | . . . Parts Self-Destructed . | . . . Prevented . | . . . Kills | -11 -10 -10 ------- Run | Scr Mat Min Combat Hostiles Destroyed 13 | . 4 9 Guns 12 | . 4 8 AOE 1 | . . 1 Classes Destroyed 3 | . 2 1 Swarmer 6 | . 3 3 Grunt 1 | . 1 . Assembled 6 | . . 6 Best Kill Streak 6 | . 3 6 Combat Bots Only 6 | . 3 6 Max Kills in Single Turn 1 | . 1 1 Gunslinging . | . . . Exploded 1 | . . 1 Melee . | . . . Uniques/NPCs Destroyed . | . . . Combat | -11 -10 -10 -------- Run | Scr Mat Min Damage Taken 1131 | . 126 1005 Core 254 | . 32 222 Absorbed by Shields . | . . . Core Remaining (%) 100 | 100 . . Volleys Fired 39 | . 11 28 Largest 2 | . 2 2 Hottest 112 | . 60 112 Shots Fired 72 | . 22 50 Gun 70 | . 22 48 Cannon . | . . . Launcher . | . . . Special 2 | . . 2 Kinetic 30 | . 11 19 Thermal 16 | . . 16 Explosive . | . . . Electromagnetic 26 | . 11 15 Robot Hit Streak 7 | . 5 7 Robot Miss Streak 4 | . 2 4 Penetration Max . | . . . Secondary Targets 4 | . . 4 Max Gunslinging Chain 1 | . . 1 Shots Hit Robots 40 | . 12 28 Core Hits 19 | . 4 15 Critical Hits . | . . . Critical Kills . | . . . Critical Parts Destroyed . | . . . Melee Attacks . | . . . Impact . | . . . Slashing . | . . . Piercing . | . . . Sneak Attacks . | . . . Combat Hostiles . | . . . Follow-up Attacks . | . . . Damage Inflicted 578 | . 130 448 Guns 524 | . 130 394 Cannons . | . . . Explosions 30 | . . 30 Melee . | . . . Ramming . | . . . Kinetic 184 | . 72 112 Thermal 226 | . . 226 Explosive . | . . . Electromagnetic 168 | . 58 110 Impact . | . . . Slashing . | . . . Piercing . | . . . Highest Corruption 1 | . . 1 Average Corruption 1 | . . 1 Corruption Purged . | . . . Effects 1 | . . 1 Message Errors 1 | . . 1 Overload Shots . | . . . Overflow Damage 26 | . . 26 Projectiles . | . . . Explosions 26 | . . 26 Melee . | . . . Knockbacks . | . . . Impact . | . . . Kinetic . | . . . Secondary . | . . . Self-Inflicted Damage 29 | . . 29 Shots 1 | . . 1 Rammed . | . . . Targets Rammed . | . . . Kicked . | . . . Crushed . | . . . Highest Temperature 477 | . 18 477 Average Temperature 168 | . 14 198 Received Heat Transfer 404 | . 24 380 Siege Activations . | . . . Robots Corrupted . | . . . Combat Hostiles . | . . . Parts Fried . | . . . Impact Corruptions . | . . . Robots Melted . | . . . Combat Hostiles . | . . . Parts Melted 1 | . . 1 Heat Transferred 544 | . . 544 Parts Sabotaged . | . . . Parts Stolen . | . . . Parts Stripped . | . . . Power Chain Reactions 1 | . . 1 Missiles Intercepted . | . . . Alert | -11 -10 -10 ------- Run | Scr Mat Min Peak Influence 122 | . 122 122 Average Influence 67 | . 59 98 Maximum Alert Level . | . . . Low Security (%) 100 | . . . Level 1 . | . . . Level 2 . | . . . Level 3 . | . . . Level 4 . | . . . Level 5 . | . . . High Security . | . . . Max Security . | . . . Squads Dispatched 1 | . 1 . Investigation 1 | . 1 . Extermination . | . . . Reinforcement . | . . . Assault . | . . . Garrison . | . . . Intercept . | . . . Construction Impeded . | . . . Haulers Reinforced . | . . . Stealth | -11 -10 -10 --------- Run | Scr Mat Min Distress Signals . | . . . Communications Jammed . | . . . Distress Signals . | . . . Times Spotted 27 | . 6 21 Peak Tracking Total 15 | . 3 15 Tactical Retreats 4 | . 1 3 Traps | -11 -10 -10 ------- Run | Scr Mat Min Traps Triggered 1 | . 1 . Indirectly . | . . . Trap Hack Attempts . | . . . Triggered . | . . . Disarmed . | . . . Reprogrammed . | . . . Reused . | . . . Traps Extracted . | . . . Installed . | . . . Triggered . | . . . Machines | -11 -10 -10 ---------- Run | Scr Mat Min Machines Disabled 2 | . 1 1 Max in Single Turn 1 | . 1 1 Machines Sabotaged . | . . . Garrisons Compromised . | . . . Overloaded Fab Kills . | . . . Fab Network Shutdowns . | . . . Hacking | -11 -10 -10 --------- Run | Scr Mat Min Machines Accessed 1 | . 1 . Terminals 1 | . 1 . Fabricators . | . . . Repair Stations . | . . . Recycling Units . | . . . Scanalyzers . | . . . Garrison Access . | . . . Total Hacks 3 | . 3 . Successful 1 | . 1 . Failed 2 | . 2 . Catastrophic . | . . . Database Lockouts . | . . . Manual . | . . . Terminals 3 | . 3 . Fabricators . | . . . Repair Stations . | . . . Recycling Units . | . . . Scanalyzers . | . . . Garrison Access . | . . . Terminal Hacks 1 | . 1 . Branch Access Points 1 | . 1 . Fabricator Hacks . | . . . Repair Station Hacks . | . . . Recycling Unit Hacks . | . . . Scanalyzer . | . . . Garrison Access Hacks . | . . . Unauthorized Hacks . | . . . Terminals . | . . . Fabricators . | . . . Repair Stations . | . . . Recycling Units . | . . . Scanalyzers . | . . . Garrison Access . | . . . Data Cores Recovered . | . . . Used . | . . . Hacking Detections 1 | . 1 . Full Trace Events . | . . . Feedback Events . | . . . Feedback Blocked . | . . . Robot Schematics Acquired . | . . . Robots Built . | . . . Matter . | . . . Time . | . . . Total Robot Build Rating . | . . . Part Schematics Acquired . | . . . Parts Built . | . . . Matter . | . . . Time . | . . . Total Part Build Rating . | . . . Parts Repaired . | . . . Time . | . . . Parts Recycled . | . . . Recycled Matter . | . . . Retrieved Matter . | . . . Retrieved Components . | . . . Parts Scanalyzed . | . . . Part Schematics Acquired . | . . . Parts Damaged . | . . . Bothacking | -11 -10 -10 ------------ Run | Scr Mat Min Used RIF Installer . | . . . Robots Hacked . | . . . Non-combat . | . . . Combat . | . . . Robot Hacks Applied . | . . . Relay Couplers Released . | . . . Robots Rewired . | . . . Allies Hacked . | . . . Hacks Repelled . | . . . Allies | -11 -10 -10 -------- Run | Scr Mat Min Total Allies . | . . . Largest Group . | . . . Highest-Rated Group . | . . . Highest-Rated Ally . | . . . Total Orders . | . . . Ally Attacks . | . . . Total Damage . | . . . Kills . | . . . Allies Corrupted . | . . . Allies Melted . | . . . Intel | -11 -10 -10 ------- Run | Scr Mat Min Robot Analysis Total . | . . . Derelict Logs Recovered . | . . . Drone Launches . | . . . Drone Recoveries . | . . . Exploration | -11 -10 -10 ------------- Run | Scr Mat Min Turns Passed 460 | 61 215 184 Spaces Moved 308 | 45 168 95 Core 21 | 17 . 4 Treads . | . . . Legs . | . . . Wheels 287 | 28 168 91 Hover . | . . . Flight . | . . . Fastest Speed 50 | 50 90 50 Average Speed 91 | 101 90 88 Slowest Speed 200 | 200 95 90 Overloaded Moves . | . . . Propulsion Burnouts . | . . . Robots Hopped . | . . . Cave-ins Triggered . | . . . Exploration Rate (%) 20 | 3 32 25 Regions Visited 2 Branch Regions 1 Pre-discovered Areas . | . . . Known Exits Taken 1 | . 1 . Unknown Exits Taken 1 | 1 . . Scrap Searched . | . . . Spaces Dug . | . . . Terrain Destroyed 3 | . . 3 Melee . | . . . Projectile . | . . . AOE 3 | . . 3 Actions | -11 -10 -10 --------- Run | Scr Mat Min Total 413 | 60 212 141 Wait 22 | . 10 12 Move 306 | 44 167 95 Hop . | . . . Pick Up 22 | 10 12 . Fast Attach . | . . . Attach 13 | 6 1 6 Detach . | . . . Swap 3 | . 3 . Drop 8 | . 8 . Fire 39 | . 11 28 Melee . | . . . Ram . | . . . Kick . | . . . Crush . | . . . Escape Stasis . | . . . Rewire . | . . . Trap . | . . . Miscellaneous . | . . . Route ------- -11/Scrapyard -10/Materials (discovered 2 exits: *Min x2) -10/Mines (discovered 1 exit: [*Mat]) History --------- Turn | Location | Event 28 | -11/Scrapyard | Discovered new exit (range 15) 62 | -11/Scrapyard | Entered Materials 68 | -10/Materials | Identified exit to Mines 277 | -10/Materials | Entered Mines 320 | -10/Mines | Build established: Mutant 335 | -10/Mines | Discovered new exit (range 9) 359 | -10/Mines | Assembled infested the area 364 | -10/Mines | Assisted by a Guerilla fighting off Assembled 419 | -10/Mines | Core integrity fell below 50% 456 | -10/Mines | Core integrity fell below 20% 459 | -10/Mines | Released all parts (3) 461 | -10/Mines | Destroyed by as-41311 with Assembled F-torch Last Messages --------------- 00420_ Knocked back. 00424_ %%:IJ PBXG/SQG7 PBHH2OQLFNYOXO5 00427_ R-06 Scavenger collects Med. Matter Pod. 00430_ Assault Rifle destroyed. 00431_ R-06 Scavenger collects Wheel. 00432_ Destroyed Asb. Hover Unit. 00438_ as-12628 destroyed. 00438_ Switching to secondary target: as-96524. 00439_ R-06 Scavenger destroyed. 00440_ Extracted 70 matter. 00440_ Beam Rifle destroyed. 00447_ Lgt. Ion Engine destroyed. 00449_ Beam Rifle destroyed. 00450_ Extracted 10 matter. 00455_ Arm. Wheel destroyed. 00458_ U-05 Engineer destroyed. 00459_ Arm. Wheel destroyed. 00459_ Released Mining Laser. 00459_ Released Med. Storage Unit. 00460_ R-06 Scavenger collects Wheel. Map ----- +----------------------------------------------------+ | ?????????????????????????????????????????????????? | | ?????????????????????????????????????????????????? | | ?????????????????????????????????????????????????? | | ?????????????????????????????????????????????????? | | ?????????????????????????????????????????????????? | | ?????????????????????????????????????????????????? | | ?????????????????????????????????????????????????? | | ?????????????????????????????????????????????????? | | ?????????????????????????????????????????????????? | | ?????????????????????????????????????????????????? | | ????????????????????????????????????????????????#? | | ???????????????????????????????????????????????? ? | | ????????????????????? ???????????????????????? ? | | ???????????????????? ???????????????????????? ? | | ???????????????????? ????????????????####### ? | | ???????????????????? #???????????????# ? | | ????????????????????? #??????????????# ? | | ?????????????????????? #?????????????# | | ??????????????????????? #####????????# """ "" | | ???????????????????????# #####????# """ "" | | ????????????????### ???# ?# ##???# """ "" | | ???????????????? ## # #???# """ "" | | ??????????????? # #???# | | ?????????????????? ##### """ | | ????????????????????????##% % """ | | ????????????????????#####@ = | | ???????????????????##!!%| r ###### | | ??????????????????##|=a!a ## ##????# % | | ?????????????????##!%%%==#### ##?????##"""#### | | ????????????????## %!####??# ##???????#####??? | | ????????????????# %##?????# ###???????????????? | | ????????????????# ##????## ##????????????????? | | ????????????????## % #???## ##???????????????? | | ?????????????????# % #??## ##??????????????? | | ?????????????????## ##?## ##?????????????? | | ????? ????????????##%#?## #?????????????? | | ????# ??????????# ### ### #?????????????? | | ???? ???????# ## ##?# #?????###?????? | | ????? #"####=# ##??# #????# ##????? | | ?????????# %! ####???# ##??# #????? | | ????????????# *! ##??????## ### #????? | | ????????????## #######????????## #?????? | | ?????????????## ?????????????????## #?????? | | ??????????????#???????????????????### < #?????? | | ????????????????????????????????????## ##?????? | | ?????????????????????????????????????## ##??????? | | ???????????????????????????????????????###???????? | | ?????????????????????????????????????????????????? | | | | | +----------------------------------------------------+ Best States ------------- Heat Dissipation 25 Energy Generation 10 Energy Capacity 125 Matter Stores 300 Matter Capacity 300 Sight Range 16 Terrain Scan Density 10 Evasion (%) 42 Item Schematics ----------------- None Robot Schematics ------------------ None Fabricated ------------ Nothing Alien Tech Used ----------------- None Achievements -------------- None Challenges ------------ None Game ------ Seed LegImpulseApparatus Manual? 0 Play Time 00:08:14 Cumulative 641.2 hours Start 2019.10.24 @ 23:18:55 End 2019.10.24 @ 23:25:11 Sessions 1 Manual Loads 0 Difficulty Rogue Special Mode None Game No. 156 Rogue 156 Adventurer 0 Explorer 0 Win Type - Total 25 Types 17/0/2/3/2/0/1 Lore% 96 Gallery% 96 Achievement% 87 Wizard Run 0 Options --------- ASCII 0 Keyboard 1 Movement Numpad Keybinds 0 Fullscreen 1 Font 18/SmallcapsGlow Map View 76x50 Tactical HUD 1 Map Filters NONE Filters NONE Steam 1 RUN: 913b179b-f1ba-44ee-bc3e-5b6d13d98e49